fUST/lending_fUST_20250206
["ID","MTS","AMOUNT","RATE_DAILY","PERIOD"]
[351835065,1738809036128,-156.850241,0.00013698,2]
[351835066,1738809036139,-501.93786972,0.00013698,2]
[351835067,1738809036150,-500.0,0.00013698,2]
[351835068,1738809036159,-2385.2,0.00013698,2]
[351835069,1738809036169,-1230.99,0.00013698,2]
[351835070,1738809036179,-515.58,0.00013698,2]
[351835071,1738809036188,-500.0,0.00013698,2]
[351835072,1738809036198,-500.0,0.00013698,2]
[351835073,1738809036207,-506.47381538,0.00013698,2]
[351835074,1738809036217,-751.71,0.00013698,2]
[351835075,1738809036227,-500.0,0.00013698,2]
[351835076,1738809036236,-500.0,0.00013698,2]
[351835077,1738809036246,-500.37701116,0.00013698,2]
[351835078,1738809036255,-1122.02,0.00013698,2]
[351835079,1738809036264,-500.0,0.00013698,2]
[351835080,1738809036274,-500.0,0.00013698,2]
[351835081,1738809036283,-413.12929157,0.00013698,2]
[351835082,1738809036292,-151.0,0.00013698,2]
[351835083,1738809036301,-153.919092,0.00013698,2]
[351835084,1738809036311,-500.0,0.00013698,2]
[351835085,1738809036322,-602.95,0.00013698,2]
[351835086,1738809036331,-500.0,0.00013698,2]
[351835087,1738809036341,-500.0,0.00013698,2]
[351835088,1738809036350,-500.55303043,0.00013698,2]
[351835089,1738809036360,-550.35107339,0.00013698,2]
[351835090,1738809036373,-500.0,0.00013698,2]
[351835091,1738809036390,-500.86749186,0.00013698,2]
[351835092,1738809036406,-500.0,0.00013698,2]
[351835093,1738809036421,-500.0,0.00013698,2]
[351835094,1738809036432,-500.0,0.00013698,2]
[351835095,1738809036442,-500.0,0.00013698,2]
[351835096,1738809036451,-500.0,0.00013698,2]
[351835097,1738809036460,-501.85057789,0.00013698,2]
[351835098,1738809036470,-1080.8,0.00013698,2]
[351835099,1738809036480,-500.0,0.00013698,2]
[351835100,1738809036490,-500.0,0.00013698,2]
[351835101,1738809036500,-715.69,0.00013698,2]
[351835102,1738809036511,-500.0,0.00013698,2]
[351835103,1738809036522,-502.3706467,0.00013698,2]
[351835104,1738809036531,-667.43,0.00013698,2]
[351835105,1738809036542,-960.78,0.00013698,2]
[351835106,1738809036551,-500.0,0.00013698,2]
[351835107,1738809036561,-500.0,0.00013698,2]
[351835108,1738809036571,-501.4865438,0.00013698,2]
[351835109,1738809036580,-501.66284848,0.00013698,2]
[351835110,1738809036590,-500.0,0.00013698,2]
[351835111,1738809036600,-723.63,0.00013698,2]
[351835112,1738809036609,-500.0,0.00013698,2]
[351835113,1738809036619,-500.0,0.00013698,2]
[351835114,1738809036628,-501.67826355,0.00013698,2]
[351835115,1738809036638,-500.0,0.00013698,2]
[351835116,1738809036653,-503.63734929,0.00013698,2]
[351835117,1738809036662,-533.39,0.00013698,2]
[351835118,1738809036671,-500.0,0.00013698,2]
[351835119,1738809036681,-942.86,0.00013698,2]
[351835120,1738809036690,-500.0,0.00013698,2]
[351835121,1738809036700,-500.0,0.00013698,2]
[351835122,1738809036709,-503.13,0.00013698,2]
[351835123,1738809036719,-490.0,0.00013698,2]
[351835124,1738809036729,-678.15,0.00013698,2]
[351835125,1738809036738,-500.0,0.00013698,2]
[351835126,1738809036748,-503.31179695,0.00013698,2]
[351835127,1738809036758,-500.0,0.00013698,2]
[351835128,1738809036767,-500.0,0.00013698,2]
[351835129,1738809036777,-500.0,0.00013698,2]
[351835130,1738809036786,-500.0,0.00013698,2]
[351835131,1738809036796,-500.0,0.00013698,2]
[351835132,1738809036806,-500.0,0.00013698,2]
[351835133,1738809036816,-500.0,0.00013698,2]
[351835134,1738809036826,-500.0,0.00013698,2]
[351835135,1738809036835,-500.0,0.00013698,2]
[351835136,1738809036845,-500.0,0.00013698,2]
[351835137,1738809036855,-708.79,0.00013698,2]
[351835138,1738809036864,-500.0,0.00013698,2]
[351835139,1738809036873,-500.0,0.00013698,2]
[351835140,1738809036882,-500.0,0.00013698,2]
[351835141,1738809036893,-500.0,0.00013698,2]
[351835142,1738809036908,-500.0,0.00013698,2]
[351835143,1738809036918,-500.0,0.00013698,2]
[351835144,1738809036928,-548.84023102,0.00013698,2]
[351835145,1738809036938,-500.0,0.00013698,2]
[351835146,1738809036947,-3215.8,0.00013698,2]
[351835147,1738809036957,-2655.88,0.00013698,2]
[351835148,1738809036966,-500.0,0.00013698,2]
[351835149,1738809036977,-501.17990343,0.00013698,2]
[351835150,1738809036987,-509.67666452,0.00013698,2]
[351835151,1738809036996,-500.0,0.00013698,2]
[351835152,1738809037006,-500.0,0.00013698,2]
[351835153,1738809037016,-1372.68,0.00013698,2]
[351835154,1738809037028,-500.0,0.00013698,2]
[351835155,1738809037041,-500.0,0.00013698,2]
[351835156,1738809037051,-500.0,0.00013698,2]
[351835157,1738809037061,-797.57,0.00013698,2]
[351835158,1738809037070,-500.0,0.00013698,2]
[351835159,1738809037080,-500.0,0.00013698,2]
[351835160,1738809037089,-500.0,0.00013698,2]
[351835161,1738809037099,-500.0,0.00013698,2]
[351835162,1738809037109,-500.0,0.00013698,2]
[351835163,1738809037118,-287.57863,0.00013698,2]
[351835164,1738809037128,-336.21765426,0.00013698,2]
[351835165,1738809037138,-628.51,0.00013698,2]
[351835166,1738809037150,-1697.92,0.00013698,2]
[351835167,1738809037159,-500.0,0.00013698,2]
[351835168,1738809037169,-500.0,0.00013698,2]
[351835169,1738809037178,-503.77414422,0.00013698,2]
[351835170,1738809037188,-501.50525665,0.00013698,2]
[351835171,1738809037198,-151.0,0.00013698,2]
[351835172,1738809037207,-151.927572,0.00013698,2]
[351835173,1738809037216,-1445.85,0.00013698,2]
[351835174,1738809037225,-509.37230433,0.00013698,2]
[351835175,1738809037235,-500.0,0.00013698,2]
[351835176,1738809037245,-1285.72,0.00013698,2]
[351835177,1738809037254,-500.0,0.00013698,2]
[351835178,1738809037264,-500.0,0.00013698,2]
[351835179,1738809037273,-500.0,0.00013698,2]
[351835180,1738809037283,-731.9,0.00013698,2]
[351835181,1738809037293,-501.11468039,0.00013698,2]
[351835182,1738809037302,-500.0,0.00013698,2]
[351835183,1738809037312,-876.4,0.00013698,2]
[351835184,1738809037322,-500.23,0.00013698,2]
[351835185,1738809037331,-500.0,0.00013698,2]
[351835186,1738809037341,-530.72,0.00013698,2]
[351835187,1738809037351,-500.0,0.00013698,2]
[351835188,1738809037361,-501.12420239,0.00013698,2]
[351835189,1738809037370,-151.0,0.00013698,2]
[351835190,1738809037379,-151.0,0.00013698,2]
[351835191,1738809037389,-500.0,0.00013698,2]
[351835192,1738809037401,-503.43933322,0.00013698,2]
[351835193,1738809037411,-501.39681279,0.00013698,2]
[351835194,1738809037420,-502.913934,0.00013698,2]
[351835195,1738809037429,-500.0,0.00013698,2]
[351835196,1738809037438,-558.7,0.00013698,2]
[351835197,1738809037449,-672.91,0.00013698,2]
[351835198,1738809037459,-500.0,0.00013698,2]
[351835199,1738809037469,-500.0,0.00013698,2]
[351835200,1738809037479,-151.0,0.00013698,2]
[351835201,1738809037489,-151.0,0.00013698,2]
[351835202,1738809037498,-1223.31,0.00013698,2]
[351835203,1738809037508,-247.17285,0.00013698,2]
[351835204,1738809037524,-500.63669964,0.00013698,2]
[351835205,1738809037534,-717.1,0.00013698,2]
[351835206,1738809037543,-500.0,0.00013698,2]
[351835207,1738809037552,-500.0,0.00013698,2]
[351835208,1738809037563,-556.62,0.00013698,2]
[351835209,1738809037572,-501.26693529,0.00013698,2]
[351835210,1738809037582,-500.72662435,0.00013698,2]
[351835211,1738809037593,-151.0,0.00013698,2]
[351835212,1738809037602,-151.0,0.00013698,2]
[351835213,1738809037612,-548.25,0.00013698,2]
[351835214,1738809037622,-500.0,0.00013698,2]
[351835215,1738809037631,-560.18,0.00013698,2]
[351835216,1738809037641,-500.0,0.00013698,2]
[351835217,1738809037652,-500.0,0.00013698,2]
[351835218,1738809037662,-500.0,0.00013698,2]
[351835219,1738809037672,-151.0,0.00013698,2]
[351835220,1738809037681,-151.0,0.00013698,2]
[351835221,1738809037690,-151.0,0.00013698,2]
[351835222,1738809037700,-151.0,0.00013698,2]
[351835223,1738809037710,-830.29,0.00013698,2]
[351835224,1738809037719,-500.0,0.00013698,2]
[351835225,1738809037729,-500.0,0.00013698,2]
[351835226,1738809037739,-151.0,0.00013698,2]
[351835227,1738809037750,-151.0,0.00013698,2]
[351835228,1738809037760,-500.0,0.00013698,2]
[351835229,1738809037770,-151.0,0.00013698,2]
[351835230,1738809037780,-151.0,0.00013698,2]
[351835231,1738809037789,-500.0,0.00013698,2]
[351835232,1738809037799,-500.0,0.00013698,2]
[351835233,1738809037808,-151.0,0.00013698,2]
[351835234,1738809037817,-151.0,0.00013698,2]
[351835235,1738809037827,-706.4,0.00013698,2]
[351835236,1738809037836,-372.10242044,0.00013698,2]
[351835237,1738809037846,-646.6,0.00013698,2]
[351835238,1738809037856,-825.9,0.00013698,2]
[351835239,1738809037866,-202.2450776,0.00013698,2]
[351835241,1738809037875,-500.0,0.00013698,2]
[351835242,1738809037884,-500.0,0.00013698,2]
[351835243,1738809037894,-500.0,0.00013698,2]
[351835244,1738809037906,-500.0,0.00013698,2]
[351835245,1738809037915,-500.0,0.00013698,2]
[351835246,1738809037925,-501.79812805,0.00013698,2]
[351835247,1738809037934,-500.0,0.00013698,2]
[351835248,1738809037943,-500.0,0.00013698,2]
[351835249,1738809037953,-519.15910468,0.00013698,2]
[351835250,1738809037962,-500.0,0.00013698,2]
[351835251,1738809037971,-500.0,0.00013698,2]
[351835252,1738809037980,-2582.06,0.00013698,2]
[351835253,1738809037989,-500.0,0.00013698,2]
[351835254,1738809037999,-505.19772957,0.00013698,2]
[351835255,1738809038009,-670.56,0.00013698,2]
[351835256,1738809038018,-500.0,0.00013698,2]
[351835257,1738809038028,-500.0,0.00013698,2]
[351835258,1738809038037,-500.0,0.00013698,2]
[351835259,1738809038047,-500.0,0.00013698,2]
[351835260,1738809038057,-500.0,0.00013698,2]
[351835261,1738809038067,-500.0,0.00013698,2]
[351835263,1738809038076,-487.55867619,0.00013698,2]
[351835265,1738809038085,-692.57,0.00013698,2]
[351835267,1738809038094,-500.0,0.00013698,2]
[351835269,1738809038104,-501.57311308,0.00013698,2]
[351835271,1738809038113,-915.66,0.00013698,2]
[351835273,1738809038122,-474.11489,0.00013698,2]
[351835275,1738809038131,-474.11489,0.00013698,2]
[351835277,1738809038141,-323.74959929,0.00013698,2]
[351835279,1738809038152,-500.0,0.00013698,2]
[351835281,1738809038161,-500.0,0.00013698,2]
[351835283,1738809038171,-503.37855634,0.00013698,2]
[351835285,1738809038180,-1000.0,0.00013698,2]
[351835287,1738809038189,-502.57310314,0.00013698,2]
[351835289,1738809038199,-474.11489,0.00013698,2]
[351835291,1738809038210,-474.11489,0.00013698,2]
[351835292,1738809038219,-259.59165,0.00013698,2]
[351835295,1738809038228,-259.59165,0.00013698,2]
[351835296,1738809038237,-500.0,0.00013698,2]
[351835298,1738809038247,-500.0,0.00013698,2]
[351835300,1738809038257,-2405.42,0.00013698,2]
[351835302,1738809038266,-440.96170391,0.00013698,2]
[351835304,1738809038276,-501.81652008,0.00013698,2]
[351835306,1738809038285,-500.0,0.00013698,2]
[351835308,1738809038295,-259.59165,0.00013698,2]
[351835310,1738809038303,-259.59165,0.00013698,2]
[351835312,1738809038313,-500.0,0.00013698,2]
[351835313,1738809038322,-500.26325349,0.00013698,2]
[351835315,1738809038332,-500.0,0.00013698,2]
[351835317,1738809038341,-151.0,0.00013698,2]
[351835319,1738809038351,-551.65,0.00013698,2]
[351835321,1738809038360,-151.0,0.00013698,2]
[351835337,1738809038498,-501.23624129,0.00013698,2]
[351835339,1738809038512,-500.0,0.00013698,2]
[351835341,1738809038521,-500.0,0.00013698,2]
[351835343,1738809038530,-151.0,0.00013698,2]
[351835345,1738809038540,-154.914362,0.00013698,2]
[351835347,1738809038550,-500.0,0.00013698,2]
[351835349,1738809038560,-500.0,0.00013698,2]
[351835351,1738809038569,-812.65,0.00013698,2]
[351835353,1738809038578,-500.0,0.00013698,2]
[351835355,1738809038588,-500.0,0.00013698,2]
[351835358,1738809038598,-500.0,0.00013698,2]
[351835361,1738809038608,-7770.55,0.00013698,2]
[351835364,1738809038618,-151.0,0.00013698,2]
[351835367,1738809038627,-5089.04,0.00013698,2]
[351835370,1738809038637,-151.0,0.00013698,2]
[351835372,1738809038646,-151.202982,0.00013698,2]
[351835374,1738809038659,-649.64360992,0.00013698,2]
[351835376,1738809038668,-376.09574499,0.00013698,2]
[351835378,1738809038677,-151.0,0.00013698,2]
[351835380,1738809038687,-151.0,0.00013698,2]
[351835382,1738809038696,-500.0,0.00013698,2]
[351835384,1738809038705,-501.80530664,0.00013698,2]
[351835386,1738809038716,-500.0,0.00013698,2]
[351835388,1738809038725,-500.0,0.00013698,2]
[351835390,1738809038734,-1146.86,0.00013698,2]
[351835392,1738809038743,-500.0,0.00013698,2]
[351835394,1738809038752,-500.34727634,0.00013698,2]
[351835396,1738809038761,-500.0,0.00013698,2]
[351835398,1738809038770,-500.0,0.00013698,2]
[351835400,1738809038780,-500.0,0.00013698,2]
[351835402,1738809038790,-500.0,0.00013698,2]
[351835404,1738809038799,-500.0,0.00013698,2]
[351835406,1738809038808,-500.0,0.00013698,2]
[351835408,1738809038817,-501.38578675,0.00013698,2]
[351835410,1738809038827,-500.0,0.00013698,2]
[351835412,1738809038836,-500.0,0.00013698,2]
[351835414,1738809038845,-2331.34,0.00013698,2]
[351835416,1738809038855,-500.0,0.00013698,2]
[351835418,1738809038864,-500.0,0.00013698,2]
[351835420,1738809038873,-500.0,0.00013698,2]
[351835422,1738809038883,-3920.04,0.00013698,2]
[351835424,1738809038892,-500.0,0.00013698,2]
[351835426,1738809038903,-1016.27,0.00013698,2]
[351835428,1738809038912,-4753.19,0.00013698,2]
[351835430,1738809038922,-500.0,0.00013698,2]
[351835432,1738809038931,-500.0,0.00013698,2]
[351835434,1738809038940,-500.0,0.00013698,2]
[351835436,1738809038950,-1309.77,0.00013698,2]
[351835438,1738809038959,-1008.95,0.00013698,2]
[351835440,1738809038969,-502.523773,0.00013698,2]
[351835442,1738809038978,-500.0,0.00013698,2]
[351835444,1738809038989,-517.07,0.00013698,2]
[351835446,1738809038998,-500.0,0.00013698,2]
[351835448,1738809039008,-500.0,0.00013698,2]
[351835450,1738809039019,-502.48573515,0.00013698,2]
[351835452,1738809039030,-233.059978,0.00013698,2]
[351835454,1738809039039,-2408.97,0.00013698,2]
[351835456,1738809039049,-174.867156,0.00013698,2]
[351835457,1738809039058,-174.867156,0.00013698,2]
[351835459,1738809039067,-500.0,0.00013698,2]
[351835460,1738809039077,-500.0,0.00013698,2]
[351835461,1738809039087,-648.14544246,0.00013698,2]
[351835462,1738809039097,-500.0,0.00013698,2]
[351835463,1738809039107,-500.0,0.00013698,2]
[351835464,1738809039116,-500.0,0.00013698,2]
[351835465,1738809039126,-174.867156,0.00013698,2]
[351835466,1738809039136,-2068.62,0.00013698,2]
[351835467,1738809039146,-174.867156,0.00013698,2]
[351835468,1738809039157,-500.0,0.00013698,2]
[351835469,1738809039166,-1937.98,0.00013698,2]
[351835470,1738809039175,-821.45,0.00013698,2]
[351835471,1738809039184,-500.0,0.00013698,2]
[351835472,1738809039193,-151.0,0.00013698,2]
[351835473,1738809039203,-921.36,0.00013698,2]
[351835474,1738809039213,-151.0,0.00013698,2]
[351835475,1738809039223,-500.0,0.00013698,2]
[351835476,1738809039232,-6774.57,0.00013698,2]
[351835477,1738809039242,-505.87721292,0.00013698,2]
[351835478,1738809039251,-512.32,0.00013698,2]
[351835479,1738809039260,-151.0,0.00013698,2]
[351835480,1738809039269,-151.0,0.00013698,2]
[351835481,1738809039278,-542.33601788,0.00013698,2]
[351835482,1738809039287,-500.0,0.00013698,2]
[351835483,1738809039297,-500.0,0.00013698,2]
[351835484,1738809039306,-646.24,0.00013698,2]
[351835485,1738809039316,-2245.92,0.00013698,2]
[351835486,1738809039325,-883.31,0.00013698,2]
[351835487,1738809039334,-500.0,0.00013698,2]
[351835488,1738809039345,-500.0,0.00013698,2]
[351835489,1738809039354,-500.0,0.00013698,2]
[351835490,1738809039364,-151.602986,0.00013698,2]
[351835491,1738809039373,-500.0,0.00013698,2]
[351835492,1738809039383,-657.15,0.00013698,2]
[351835493,1738809039392,-500.0,0.00013698,2]
[351835494,1738809039403,-500.0,0.00013698,2]
[351835495,1738809039412,-501.69670012,0.00013698,2]
[351835496,1738809039421,-151.0,0.00013698,2]
[351835497,1738809039430,-151.0,0.00013698,2]
[351835498,1738809039439,-500.0,0.00013698,2]
[351835499,1738809039449,-501.35758855,0.00013698,2]
[351835500,1738809039458,-2518.98,0.00013698,2]
[351835501,1738809039467,-2518.98,0.00013698,2]
[351835502,1738809039476,-2518.98,0.00013698,2]
[351835503,1738809039485,-2518.98,0.00013698,2]
[351835504,1738809039496,-2518.98,0.00013698,2]
[351835505,1738809039505,-2518.98,0.00013698,2]
[351835506,1738809039515,-2518.98,0.00013698,2]
[351835507,1738809039525,-500.0,0.00013698,2]
[351835508,1738809039535,-2518.98,0.00013698,2]
[351835509,1738809039545,-2518.98,0.00013698,2]
[351835510,1738809039555,-2518.98,0.00013698,2]
[351835511,1738809039565,-2518.98,0.00013698,2]
[351835512,1738809039575,-2518.98,0.00013698,2]
[351835513,1738809039585,-2518.98,0.00013698,2]
[351835514,1738809039597,-2518.98,0.00013698,2]
[351835515,1738809039607,-2518.98,0.00013698,2]
[351835516,1738809039617,-2518.98,0.00013698,2]
[351835517,1738809039626,-2518.98,0.00013698,2]
[351835518,1738809039635,-500.0,0.00013698,2]
[351835519,1738809039645,-2518.98,0.00013698,2]
[351835520,1738809039656,-502.31199779,0.00013698,2]
[351835521,1738809039665,-2518.98,0.00013698,2]
[351835522,1738809039675,-500.0,0.00013698,2]
[351835523,1738809039685,-2518.98,0.00013698,2]
[351835524,1738809039694,-2518.98,0.00013698,2]
[351835525,1738809039704,-2518.98,0.00013698,2]
[351835526,1738809039714,-2518.98,0.00013698,2]
[351835527,1738809039724,-2519.15119952,0.00013698,2]
[351835528,1738809039733,-500.54621003,0.00013698,2]
[351835529,1738809039743,-500.0,0.00013698,2]
[351835530,1738809039752,-2335.08,0.00013698,2]
[351835531,1738809039761,-2104.35,0.00013698,2]
[351835532,1738809039771,-1333.74,0.00013698,2]
[351835533,1738809039781,-500.0,0.00013698,2]
[351835534,1738809039793,-500.55410246,0.00013698,2]
[351835535,1738809039804,-589.14,0.00013698,2]
[351835536,1738809039815,-500.0,0.00013698,2]
[351835537,1738809039825,-500.0,0.00013698,2]
[351835538,1738809039835,-28874.66,0.00013698,2]
[351835539,1738809039846,-5391.21,0.00013698,2]
[351835540,1738809039856,-500.0,0.00013698,2]
[351835541,1738809039866,-500.0,0.00013698,2]
[351835542,1738809039876,-500.0,0.00013698,2]
[351835543,1738809039885,-8508.58,0.00013698,2]
[351835544,1738809039896,-8508.58,0.00013698,2]
[351835545,1738809039906,-8508.58,0.00013698,2]
[351835546,1738809039916,-8508.58,0.00013698,2]
[351835548,1738809039925,-87280.53,0.00013698,2]
[351835549,1738809039935,-8508.58,0.00013698,2]
[351835551,1738809039944,-8508.58,0.00013698,2]
[351835552,1738809039955,-8508.58,0.00013698,2]
[351835553,1738809039964,-8508.58,0.00013698,2]
[351835554,1738809039974,-8508.58,0.00013698,2]
[351835555,1738809039985,-8508.58,0.00013698,2]
[351835556,1738809039994,-8508.58,0.00013698,2]
[351835557,1738809040004,-8508.58,0.00013698,2]
[351835558,1738809040014,-500.0,0.00013698,2]
[351835559,1738809040023,-849.71,0.00013698,2]
[351835560,1738809040033,-10657.15,0.00013698,2]
[351835561,1738809040043,-8508.58,0.00013698,2]
[351835562,1738809040052,-8508.58,0.00013698,2]
[351835563,1738809040062,-8508.58,0.00013698,2]
[351835564,1738809040072,-8508.58,0.00013698,2]
[351835566,1738809040081,-8508.58,0.00013698,2]
[351835567,1738809040091,-8508.58,0.00013698,2]
[351835568,1738809040101,-608.75,0.00013698,2]
[351835569,1738809040111,-8508.58,0.00013698,2]
[351835570,1738809040120,-8508.58,0.00013698,2]
[351835571,1738809040130,-8508.58,0.00013698,2]
[351835572,1738809040139,-8508.58,0.00013698,2]
[351835573,1738809040149,-8508.58,0.00013698,2]
[351835574,1738809040159,-8508.65675445,0.00013698,2]
[351835575,1738809040168,-988.39,0.00013698,2]
[351835577,1738809040178,-2485.41,0.00013698,2]
[351835579,1738809040188,-4363.99,0.00013698,2]
[351835581,1738809040198,-500.0,0.00013698,2]
[351835582,1738809040207,-151.0,0.00013698,2]
[351835584,1738809040218,-151.0,0.00013698,2]
[351835585,1738809040228,-151.0,0.00013698,2]
[351835587,1738809040237,-151.0,0.00013698,2]
[351835588,1738809040247,-500.0,0.00013698,2]
[351835589,1738809040256,-500.0,0.00013698,2]
[351835590,1738809040266,-529.14631624,0.00013698,2]
[351835591,1738809040275,-500.0,0.00013698,2]
[351835592,1738809040285,-526.37,0.00013698,2]
[351835593,1738809040295,-151.0,0.00013698,2]
[351835594,1738809040304,-151.0,0.00013698,2]
[351835595,1738809040313,-500.0,0.00013698,2]
[351835596,1738809040323,-745.04,0.00013698,2]
[351835597,1738809040332,-151.392093,0.00013698,2]
[351835598,1738809040342,-500.0,0.00013698,2]
[351835599,1738809040352,-500.0,0.00013698,2]
[351835600,1738809040362,-152.286082,0.00013698,2]
[351835601,1738809040371,-599.76,0.00013698,2]
[351835602,1738809040381,-500.0,0.00013698,2]
[351835603,1738809040391,-539.58,0.00013698,2]
[351835604,1738809040400,-503.62004848,0.00013698,2]
[351835605,1738809040410,-500.0,0.00013698,2]
[351835607,1738809040419,-500.0,0.00013698,2]
[351835608,1738809040429,-1217.73,0.00013698,2]
[351835610,1738809040438,-500.0,0.00013698,2]
[351835612,1738809040448,-501.30821095,0.00013698,2]
[351835614,1738809040458,-151.0,0.00013698,2]
[351835616,1738809040467,-500.0,0.00013698,2]
[351835618,1738809040477,-151.0,0.00013698,2]
[351835620,1738809040486,-547.78,0.00013698,2]
[351835621,1738809040495,-1128.84,0.00013698,2]
[351835622,1738809040504,-4415.97,0.00013698,2]
[351835623,1738809040517,-500.0,0.00013698,2]
[351835624,1738809040527,-514.73330442,0.00013698,2]
[351835625,1738809040537,-2647.78,0.00013698,2]
[351835626,1738809040546,-161.51298605,0.00013698,2]
[351835627,1738809040557,-152.211149,0.00013698,2]
[351835629,1738809040567,-2358.19,0.00013698,2]
[351835630,1738809040576,-659.95,0.00013698,2]
[351835631,1738809040586,-500.0,0.00013698,2]
[351835632,1738809040596,-500.73963493,0.00013698,2]
[351835633,1738809040606,-90.75626093,0.00013698,2]
[351835634,1738809041391,-264.12165146,0.00013593,2]
[351835635,1738809041403,-60.24373907,0.00013698,2]
[351835636,1738809041412,-151.653199,0.00013698,2]
[351835637,1738809041422,-641.71,0.00013698,2]
[351835638,1738809041432,-500.0,0.00013698,2]
[351835639,1738809041441,-500.0,0.00013698,2]
[351835640,1738809041451,-1725.78,0.00013698,2]
[351835641,1738809041460,-500.0,0.00013698,2]
[351835642,1738809041469,-6406.99,0.00013698,2]
[351835643,1738809041479,-667.93,0.00013698,2]
[351835644,1738809041488,-234.711113,0.00013698,2]
[351835645,1738809041498,-500.0,0.00013698,2]
[351835646,1738809041508,-234.711113,0.00013698,2]
[351835647,1738809041521,-151.0,0.00013698,2]
[351835648,1738809041531,-234.711113,0.00013698,2]
[351835649,1738809041541,-151.0,0.00013698,2]
[351835650,1738809041551,-151.0,0.00013698,2]
[351835651,1738809041561,-500.0,0.00013698,2]
[351835652,1738809041570,-500.59920928,0.00013698,2]
[351835653,1738809041580,-151.0,0.00013698,2]
[351835654,1738809041590,-500.0,0.00013698,2]
[351835655,1738809041600,-151.0,0.00013698,2]
[351835656,1738809041610,-234.711113,0.00013698,2]
[351835657,1738809041620,-151.0,0.00013698,2]
[351835658,1738809041630,-234.711113,0.00013698,2]
[351835659,1738809041639,-234.711113,0.00013698,2]
[351835660,1738809041650,-500.64825319,0.00013698,2]
[351835661,1738809041659,-3260.6,0.00013698,2]
[351835662,1738809041669,-12629.42,0.00013698,2]
[351835663,1738809041679,-500.0,0.00013698,2]
[351835664,1738809041688,-12629.42,0.00013698,2]
[351835665,1738809041698,-500.55216302,0.00013698,2]
[351835666,1738809041707,-500.0,0.00013698,2]
[351835667,1738809041717,-12629.42,0.00013698,2]
[351835668,1738809041726,-12629.42,0.00013698,2]
[351835669,1738809041736,-12629.42,0.00013698,2]
[351835670,1738809041745,-12629.42,0.00013698,2]
[351835671,1738809041754,-12629.42,0.00013698,2]
[351835672,1738809041763,-500.0,0.00013698,2]
[351835673,1738809041773,-12629.42,0.00013698,2]
[351835674,1738809041782,-12629.42,0.00013698,2]
[351835675,1738809041791,-12629.42,0.00013698,2]
[351835676,1738809041801,-1000.0,0.00013698,2]
[351835677,1738809041811,-12629.42,0.00013698,2]
[351835678,1738809041820,-12629.42,0.00013698,2]
[351835679,1738809041829,-12629.42,0.00013698,2]
[351835680,1738809041839,-12629.42,0.00013698,2]
[351835681,1738809041848,-12629.42,0.00013698,2]
[351835682,1738809041858,-12629.42,0.00013698,2]
[351835683,1738809041868,-12629.42,0.00013698,2]
[351835684,1738809041877,-12629.42,0.00013698,2]
[351835685,1738809041887,-12629.42,0.00013698,2]
[351835686,1738809041896,-777.65,0.00013698,2]
[351835687,1738809041907,-500.0,0.00013698,2]
[351835688,1738809041916,-12629.42,0.00013698,2]